fUST/lending_fUST_20250704
["ID","MTS","AMOUNT","RATE_DAILY","PERIOD"]
[369403851,1751566245955,-764.46,0.00018082,2]
[369403853,1751566245965,-460.0,0.00018082,2]
[369403855,1751566245975,-460.0,0.00018082,2]
[369403857,1751566245984,-460.0,0.00018082,2]
[369403859,1751566245995,-1523.06,0.00018082,2]
[369403861,1751566246005,-460.0,0.00018082,2]
[369403863,1751566246015,-577.73,0.00018082,2]
[369403865,1751566246025,-460.0,0.00018082,2]
[369403867,1751566246034,-460.0,0.00018082,2]
[369403869,1751566246044,-3545.88,0.00018082,2]
[369403871,1751566246053,-460.0,0.00018082,2]
[369403873,1751566246062,-1240.0,0.000181,2]
[369403875,1751566246072,-694.36908028,0.00018116,2]
[369403883,1751566246135,-460.0,0.00018082,2]
[369403885,1751566246144,-1305.63091972,0.00018116,2]
[369403887,1751566246154,-2000.0,0.00018116,2]
[369403889,1751566246163,-2000.0,0.00018116,2]
[369403891,1751566246173,-587.0,0.00018191,2]
[369403893,1751566246182,-151.0,0.000182,2]
[369403895,1751566246191,-460.0,0.00018356,2]
[369403897,1751566246200,-460.0,0.00018356,2]
[369403899,1751566246209,-460.0,0.00018356,2]
[369403901,1751566246218,-460.0,0.00018356,2]
[369403903,1751566246227,-3182.7,0.00018356,2]
[369403905,1751566246236,-742.76,0.00018356,2]
[369403907,1751566246248,-589.92,0.00018356,2]
[369403909,1751566246258,-239.77186916,0.00018356,2]
[369403912,1751566246268,-589.43,0.00018356,2]
[369403914,1751566246278,-2511.4,0.00018356,2]
[369403916,1751566246288,-460.0,0.00018356,2]
[369403918,1751566246297,-705.44,0.00018356,2]
[369403920,1751566246306,-1426.38,0.00018356,2]
[369403922,1751566246315,-460.0,0.00018356,2]
[369403924,1751566246324,-2568.62,0.00018356,2]
[369403926,1751566246334,-408.73818556,0.00018356,2]
[369403928,1751566246343,-460.0,0.00018356,2]
[369403930,1751566246353,-460.0,0.00018356,2]
[369403932,1751566246362,-460.0,0.00018356,2]
[369403934,1751566246372,-1779.53,0.00018356,2]
[369403936,1751566246381,-460.0,0.00018356,2]
[369403938,1751566246391,-196.82976634,0.00018356,2]
[369403940,1751566246400,-819.64,0.00018356,2]
[369403942,1751566246409,-460.0,0.00018356,2]
[369403943,1751566246419,-902.5,0.00018356,2]
[369403946,1751566246428,-460.0,0.00018356,2]
[369403948,1751566246437,-460.0,0.00018356,2]
[369403950,1751566246446,-594.59,0.00018356,2]
[369403952,1751566246456,-899.26,0.00018356,2]
[369403954,1751566246465,-2235.3,0.00018356,2]
[369403956,1751566246475,-2651.83,0.00018356,2]
[369403958,1751566246484,-460.0,0.00018356,2]
[369403960,1751566246495,-460.0,0.00018356,2]
[369403962,1751566246504,-2402.82,0.00018356,2]
[369403964,1751566246513,-460.0,0.00018356,2]
[369403966,1751566246522,-460.0,0.00018356,2]
[369403968,1751566246531,-460.0,0.00018356,2]
[369403970,1751566246540,-460.0,0.00018356,2]
[369403972,1751566246550,-460.0,0.00018356,2]
[369403974,1751566246559,-973.95,0.00018356,2]
[369403976,1751566246568,-460.0,0.00018356,2]
[369403978,1751566246577,-321.48,0.00018356,2]
[369403980,1751566246587,-1737.0,0.00018356,2]
[369403982,1751566246596,-460.0,0.00018356,2]
[369403984,1751566246605,-1357.29,0.00018356,2]
[369403986,1751566246615,-460.0,0.00018356,2]
[369403988,1751566246624,-764.46,0.00018356,2]
[369403990,1751566246633,-460.0,0.00018356,2]
[369403992,1751566246642,-460.0,0.00018356,2]
[369403994,1751566246651,-460.0,0.00018356,2]
[369403996,1751566246660,-1523.06,0.00018356,2]
[369403998,1751566246669,-460.0,0.00018356,2]
[369404000,1751566246678,-577.73,0.00018356,2]
[369404002,1751566246687,-460.0,0.00018356,2]
[369404004,1751566246696,-460.0,0.00018356,2]
[369404006,1751566246706,-3545.88,0.00018356,2]
[369404008,1751566246715,-316.16,0.00018356,2]
[369404010,1751566246724,-460.0,0.00018356,2]
[369404012,1751566246732,-2415.5158815,0.00018378,2]
[369404014,1751566246744,-160.0,0.0001847,2]
[369404015,1751566246753,-160.0,0.0001847,2]
[369404018,1751566246762,-837.389109,0.0001847,2]
[369404020,1751566246771,-160.0,0.0001847,2]
[369404022,1751566246781,-160.0,0.0001847,2]
[369404024,1751566246790,-847.79783075,0.0001847,2]
[369404026,1751566246799,-213.94585247,0.0001847,2]
[369404028,1751566246808,-215.07701991,0.0001847,2]
[369404029,1751566246818,-160.0,0.0001847,2]
[369404031,1751566246827,-160.0,0.0001847,2]
[369404033,1751566246837,-230.37558374,0.0001847,2]
[369404035,1751566246846,-12575.98004106,0.0001847,2]
[369404038,1751566246861,-160.0,0.0001847,2]
[369404040,1751566246870,-166.666666,0.00018492,2]
[369404041,1751566246879,-151.0,0.000185,2]
[369404043,1751566246888,-166.666666,0.00018562,2]
[369404045,1751566246899,-151.0,0.00018585,2]
[369404048,1751566246909,-460.0,0.0001863,2]
[369404049,1751566246919,-460.0,0.0001863,2]
[369404051,1751566246928,-151.0,0.0001863,2]
[369404053,1751566246939,-265.10983529,0.0001863,2]
[369404055,1751566246949,-460.0,0.0001863,2]
[369404057,1751566246958,-460.0,0.0001863,2]
[369404059,1751566246967,-3182.7,0.0001863,2]
[369404062,1751566246978,-742.76,0.0001863,2]
[369404064,1751566246987,-589.92,0.0001863,2]
[369404066,1751566246998,-589.43,0.0001863,2]
[369404068,1751566247007,-2511.4,0.0001863,2]
[369404070,1751566247016,-460.0,0.0001863,2]
[369404072,1751566247026,-705.44,0.0001863,2]
[369404074,1751566247035,-1426.38,0.0001863,2]
[369404076,1751566247045,-460.0,0.0001863,2]
[369404078,1751566247054,-2568.62,0.0001863,2]
[369404080,1751566247064,-460.0,0.0001863,2]
[369404082,1751566247074,-460.0,0.0001863,2]
[369404084,1751566247084,-460.0,0.0001863,2]
[369404086,1751566247093,-1779.53,0.0001863,2]
[369404088,1751566247103,-819.64,0.0001863,2]
[369404090,1751566247112,-460.0,0.0001863,2]
[369404092,1751566247121,-902.5,0.0001863,2]
[369404094,1751566247131,-280.75329537,0.0001863,2]
[369404095,1751566247140,-460.0,0.0001863,2]
[369404097,1751566247149,-594.59,0.0001863,2]
[369404099,1751566247159,-899.26,0.0001863,2]
[369404101,1751566247168,-2235.3,0.0001863,2]
[369404104,1751566247178,-2651.83,0.0001863,2]
[369404105,1751566247188,-460.0,0.0001863,2]
[369404107,1751566247198,-341.86486891,0.0001863,2]
[369404109,1751566247208,-2402.82,0.0001863,2]
[369404112,1751566247219,-151.0,0.0001863,2]
[369404114,1751566247229,-460.0,0.0001863,2]
[369404116,1751566247238,-460.0,0.0001863,2]
[369404118,1751566247256,-460.0,0.0001863,2]
[369404120,1751566247266,-460.0,0.0001863,2]
[369404122,1751566247277,-973.95,0.0001863,2]
[369404124,1751566247287,-460.0,0.0001863,2]
[369404126,1751566247297,-1737.0,0.0001863,2]
[369404127,1751566247307,-460.0,0.0001863,2]
[369404130,1751566247317,-1357.29,0.0001863,2]
[369404131,1751566247326,-151.0,0.0001863,2]
[369404133,1751566247335,-460.0,0.0001863,2]
[369404135,1751566247345,-234.806129,0.0001863,2]
[369404137,1751566247355,-764.46,0.0001863,2]
[369404138,1751566247364,-460.0,0.0001863,2]
[369404140,1751566247494,-460.0,0.0001863,2]
[369404142,1751566247503,-1523.06,0.0001863,2]
[369404144,1751566247513,-577.73,0.0001863,2]
[369404146,1751566247522,-460.0,0.0001863,2]
[369404148,1751566247532,-3545.88,0.0001863,2]
[369404150,1751566247541,-460.0,0.0001863,2]
[369404151,1751566247551,-166.666666,0.00018632,2]
[369404153,1751566247561,-250.0,0.0001864,2]
[369404155,1751566247571,-2500.0,0.00018664,2]
[369404157,1751566247582,-2500.0,0.00018664,2]
[369404159,1751566247593,-250.0,0.0001868,2]
[369404161,1751566247603,-151.0,0.000187,2]
[369404163,1751566247613,-166.666666,0.00018703,2]
[369404165,1751566247622,-250.0,0.0001872,2]
[369404167,1751566247631,-250.0,0.0001876,2]
[369404169,1751566247641,-166.666666,0.00018773,2]
[369404171,1751566247650,-250.0,0.000188,2]
[369404173,1751566247659,-250.0,0.00018841,2]
[369404175,1751566247668,-166.666666,0.00018843,2]
[369404177,1751566247678,-250.0,0.00018881,2]
[369404179,1751566247688,-2187.08144556,0.00018886,2]
[369404181,1751566247697,-8250.06322767,0.000189,2]
[369404183,1751566247707,-460.0,0.00018904,2]
[369404185,1751566247717,-460.0,0.00018904,2]
[369404187,1751566247726,-460.0,0.00018904,2]
[369404189,1751566247735,-460.0,0.00018904,2]
[369404191,1751566247749,-3182.7,0.00018904,2]
[369404193,1751566247758,-742.76,0.00018904,2]
[369404195,1751566247767,-589.92,0.00018904,2]
[369404197,1751566247776,-589.43,0.00018904,2]
[369404199,1751566247785,-2511.4,0.00018904,2]
[369404201,1751566247795,-460.0,0.00018904,2]
[369404203,1751566247805,-705.44,0.00018904,2]
[369404205,1751566247814,-1426.38,0.00018904,2]
[369404207,1751566247824,-2568.62,0.00018904,2]
[369404209,1751566247833,-460.0,0.00018904,2]
[369404211,1751566247843,-460.0,0.00018904,2]
[369404213,1751566247854,-460.0,0.00018904,2]
[369404215,1751566247866,-1779.53,0.00018904,2]
[369404217,1751566247876,-819.64,0.00018904,2]
[369404219,1751566247886,-402.73,0.00018904,2]
[369404221,1751566247895,-902.5,0.00018904,2]
[369404223,1751566247905,-460.0,0.00018904,2]
[369404225,1751566247915,-594.59,0.00018904,2]
[369404227,1751566247924,-899.26,0.00018904,2]
[369404229,1751566247934,-2235.3,0.00018904,2]
[369404231,1751566247943,-2651.83,0.00018904,2]
[369404233,1751566247952,-460.0,0.00018904,2]
[369404235,1751566247961,-2402.82,0.00018904,2]
[369404237,1751566247971,-460.0,0.00018904,2]
[369404239,1751566247980,-460.0,0.00018904,2]
[369404241,1751566247989,-460.0,0.00018904,2]
[369404242,1751566248000,-973.95,0.00018904,2]
[369404244,1751566248010,-602.13555245,0.00018904,2]
[369404246,1751566248020,-1737.0,0.00018904,2]
[369404248,1751566248029,-460.0,0.00018904,2]
[369404250,1751566248039,-1357.29,0.00018904,2]
[369404252,1751566248049,-460.0,0.00018904,2]
[369404254,1751566248059,-764.46,0.00018904,2]
[369404256,1751566248068,-460.0,0.00018904,2]
[369404258,1751566248079,-460.0,0.00018904,2]
[369404260,1751566248089,-1523.06,0.00018904,2]
[369404262,1751566248099,-577.73,0.00018904,2]
[369404264,1751566248109,-460.0,0.00018904,2]
[369404266,1751566248119,-3545.88,0.00018904,2]
[369404268,1751566248129,-460.0,0.00018904,2]
[369404270,1751566248138,-153.0,0.00018904,2]
[369404272,1751566248148,-177.6570982,0.00018904,2]
[369404274,1751566248158,-1151.2020643,0.00018904,2]
[369404276,1751566248168,-575.6969649,0.00018904,2]
[369404278,1751566248177,-181.8643875,0.00018904,2]
[369404280,1751566248187,-575.6969649,0.00018904,2]
[369404282,1751566248198,-177.6570982,0.00018904,2]
[369404284,1751566248208,-177.6570982,0.00018904,2]
[369404286,1751566248217,-177.6570982,0.00018904,2]
[369404288,1751566248227,-177.6570982,0.00018904,2]
[369404290,1751566248237,-177.6570982,0.00018904,2]
[369404292,1751566248249,-177.6570982,0.00018904,2]
[369404294,1751566248259,-166.666666,0.00018913,2]
[369404296,1751566248269,-250.0,0.00018921,2]
[369404298,1751566248279,-250.0,0.00018961,2]
[369404300,1751566248290,-166.666666,0.00018983,2]
[369404302,1751566248301,-151.0,0.00019,2]
[369404304,1751566248311,-151.0,0.00019,2]
[369404306,1751566248321,-250.0,0.00019001,2]
[369404308,1751566248332,-216.15277116,0.00019041,2]
[369404321,1751566248454,-33.84722884,0.00019041,2]
[369404323,1751566248463,-166.666666,0.00019053,2]
[369404325,1751566248474,-250.0,0.00019082,2]
[369404327,1751566248483,-166.666666,0.00019123,2]
[369404329,1751566248495,-168.3957492,0.00019178,2]
[369404331,1751566248504,-460.0,0.00019178,2]
[369404333,1751566248514,-151.0,0.00019178,2]
[369404335,1751566248523,-151.0,0.00019178,2]
[369404337,1751566248533,-460.0,0.00019178,2]
[369404339,1751566248543,-151.0,0.00019178,2]
[369404341,1751566248552,-742.76,0.00019178,2]
[369404343,1751566248562,-151.0,0.00019178,2]
[369404345,1751566248572,-589.92,0.00019178,2]
[369404347,1751566248582,-589.43,0.00019178,2]
[369404349,1751566248592,-2511.4,0.00019178,2]
[369404351,1751566248601,-460.0,0.00019178,2]
[369404353,1751566248611,-705.44,0.00019178,2]
[369404355,1751566248621,-1426.38,0.00019178,2]
[369404357,1751566248630,-2568.62,0.00019178,2]
[369404359,1751566248641,-460.0,0.00019178,2]
[369404361,1751566248651,-460.0,0.00019178,2]
[369404363,1751566248660,-460.0,0.00019178,2]
[369404365,1751566248669,-1779.53,0.00019178,2]
[369404367,1751566248679,-819.64,0.00019178,2]
[369404369,1751566248688,-902.5,0.00019178,2]
[369404371,1751566248698,-345.02855552,0.00019178,2]
[369404373,1751566248708,-594.59,0.00019178,2]
[369404375,1751566248717,-899.26,0.00019178,2]
[369404377,1751566248727,-2235.3,0.00019178,2]
[369404379,1751566248737,-2651.83,0.00019178,2]
[369404381,1751566248747,-460.0,0.00019178,2]
[369404383,1751566248756,-2402.82,0.00019178,2]
[369404385,1751566248765,-279.251256,0.00019178,2]
[369404387,1751566248774,-524.79141297,0.00019178,10]
[369404389,1751566248784,-460.0,0.00019178,2]
[369404391,1751566248793,-213.94585247,0.00019178,10]
[369404393,1751566248803,-460.0,0.00019178,2]
[369404395,1751566248813,-460.0,0.00019178,2]
[369404397,1751566248823,-973.95,0.00019178,2]
[369404399,1751566248832,-847.79783075,0.00019178,10]
[369404401,1751566248841,-1737.0,0.00019178,2]
[369404403,1751566248852,-460.0,0.00019178,2]
[369404405,1751566248866,-1357.29,0.00019178,2]
[369404407,1751566248877,-151.0,0.00019178,2]
[369404409,1751566248888,-460.0,0.00019178,2]
[369404411,1751566248899,-764.46,0.00019178,2]
[369404413,1751566248910,-460.0,0.00019178,2]
[369404415,1751566248922,-945.19227221,0.00019178,2]
[369408000,1751566748872,206.122746,0.00013699,2]
[369408063,1751567246135,-427.41425803,0.00015501,2]
[369408064,1751567252094,-956.88572595,0.00015501,2]
[369408110,1751567431971,-300.0,0.00015499,2]
[369408111,1751567431980,-500.0,0.000155,2]
[369408112,1751567431990,-197.59002479,0.000155,2]
[369408113,1751567431999,-500.0,0.000155,2]
[369408114,1751567432008,-500.0,0.000155,2]
[369408115,1751567432018,-500.0,0.000155,2]
[369408116,1751567432027,-389.13878711,0.000155,2]
[369408117,1751567432037,-521.29513785,0.000155,2]
[369408118,1751567432046,-13483.30877349,0.00015501,2]
[369408159,1751567437963,-711.65003983,0.00015501,2]
[369408161,1751567437973,-1434.10880371,0.00016337,2]
[369408163,1751567437983,-1200.0,0.00016426,2]
[369408165,1751567437993,-46747.54070193,0.00016427,2]
[369408167,1751567438002,-179.29,0.00016428,3]
[369408169,1751567438012,-151.0,0.00016428,2]
[369408171,1751567438021,-151.0,0.00016428,2]
[369408173,1751567438031,-151.0,0.00016428,2]
[369408176,1751567438040,-151.0,0.00016428,2]
[369408178,1751567438050,-151.0,0.00016428,2]
[369408180,1751567438059,-151.0,0.00016428,2]
[369408182,1751567438068,-500.0,0.00016437,2]
[369408184,1751567438078,-500.0,0.00016437,2]
[369408186,1751567438087,-500.0,0.00016437,2]
[369408188,1751567438096,-586.75415089,0.00016437,2]
[369408190,1751567438105,-500.0,0.00016437,2]
[369408192,1751567438114,-500.0,0.00016437,2]
[369408194,1751567438124,-500.0,0.00016437,2]
[369408196,1751567438133,-460.0,0.00016438,2]
[369408198,1751567438142,-460.0,0.00016438,2]
[369408200,1751567438151,-289.62656306,0.00016438,2]
[369408202,1751567438161,-571.99035009,0.00016438,2]
[369408203,1751567438175,-603.46305526,0.00016438,2]
[369408206,1751567438185,-460.0,0.00016438,2]
[369408208,1751567438194,-460.0,0.00016438,2]
[369408210,1751567438204,-460.92259072,0.00016438,2]
[369408212,1751567438214,-460.0,0.00016438,2]
[369408214,1751567438223,-456.27908205,0.00016438,2]
[369408216,1751567438233,-460.0,0.00016438,2]
[369408218,1751567438242,-460.0,0.00016438,2]
[369408220,1751567438252,-460.0,0.00016438,2]
[369408222,1751567438262,-460.0,0.00016438,2]
[369408224,1751567438271,-460.0,0.00016438,2]
[369408226,1751567438281,-365.61790684,0.00016438,2]
[369408228,1751567438290,-210.54856,0.00016438,2]
[369408230,1751567438299,-460.0,0.00016438,2]
[369408232,1751567438309,-199.92600023,0.00016438,2]
[369408234,1751567438318,-460.0,0.00016438,2]
[369408236,1751567438328,-460.0,0.00016438,2]
[369408238,1751567438338,-460.0,0.00016438,2]
[369408240,1751567438348,-460.0,0.00016438,2]
[369408242,1751567438357,-466.79,0.00016438,2]
[369408244,1751567438367,-446.47995258,0.00016438,2]
[369408246,1751567438377,-460.0,0.00016438,2]
[369408248,1751567438386,-460.0,0.00016438,2]
[369408250,1751567438395,-324.4247581,0.00016438,2]
[369408252,1751567438405,-460.0,0.00016438,2]
[369408254,1751567438414,-460.0,0.00016438,2]
[369408256,1751567438423,-460.0,0.00016438,2]
[369408258,1751567438431,-460.0,0.00016438,2]
[369408260,1751567438440,-260.0,0.00016438,2]
[369408262,1751567438450,-460.0,0.00016438,2]
[369408264,1751567438460,-460.0,0.00016438,2]
[369408266,1751567438470,-579.99,0.00016438,2]
[369408268,1751567438480,-460.0,0.00016438,2]
[369408270,1751567438489,-421.59241089,0.00016438,2]
[369408272,1751567438499,-460.0,0.00016438,2]
[369408274,1751567438509,-460.0,0.00016438,2]
[369408276,1751567438518,-362.78262875,0.00016438,2]
[369408278,1751567438527,-460.0,0.00016438,2]
[369408280,1751567438537,-460.0,0.00016438,2]
[369408282,1751567438546,-460.0,0.00016438,2]
[369408284,1751567438555,-460.0,0.00016438,2]
[369408286,1751567438565,-609.36,0.00016438,2]
[369408288,1751567438575,-450.35518595,0.00016438,2]
[369408290,1751567438586,-460.0,0.00016438,2]
[369408292,1751567438596,-581.4860063,0.00016438,2]
[369408294,1751567438605,-460.0,0.00016438,2]
[369408296,1751567438614,-460.0,0.00016438,2]
[369408298,1751567438624,-478.64838116,0.00016438,2]
[369408300,1751567438633,-460.0,0.00016438,2]
[369408302,1751567438642,-460.0,0.00016438,2]
[369408304,1751567438650,-460.0,0.00016438,2]
[369408306,1751567438660,-460.0,0.00016438,2]
[369408308,1751567438669,-460.0,0.00016438,2]
[369408310,1751567438679,-460.0,0.00016438,2]
[369408312,1751567438688,-236.69,0.00016438,2]
[369408314,1751567438697,-460.0,0.00016438,2]
[369408316,1751567438706,-462.99246895,0.00016438,2]
[369408318,1751567438715,-1068.95,0.00016438,2]
[369408320,1751567438726,-460.0,0.00016438,2]
[369408322,1751567438735,-577.62,0.00016438,2]
[369408324,1751567438744,-460.0,0.00016438,2]
[369408326,1751567438753,-460.0,0.00016438,2]
[369408328,1751567438763,-1055.49,0.00016438,2]
[369408330,1751567438772,-1922.23,0.00016438,2]
[369408332,1751567438781,-460.0,0.00016438,2]
[369408334,1751567438791,-460.0,0.00016438,2]
[369408337,1751567438800,-635.56,0.00016438,2]
[369408339,1751567438810,-460.0,0.00016438,2]
[369408341,1751567438819,-693.32,0.00016438,2]
[369408362,1751567439008,-363.68026919,0.00016438,2]
[369408364,1751567439018,-460.0,0.00016438,2]
[369408366,1751567439028,-460.0,0.00016438,2]
[369408368,1751567439037,-460.0,0.00016438,2]
[369408370,1751567439047,-460.0,0.00016438,2]
[369408373,1751567439056,-460.0,0.00016438,2]
[369408374,1751567439066,-312.66277191,0.00016438,2]
[369408376,1751567439076,-460.0,0.00016438,2]
[369408379,1751567439087,-460.0,0.00016438,2]
[369408381,1751567439097,-1864.74,0.00016438,2]
[369408383,1751567439107,-460.0,0.00016438,2]
[369408385,1751567439117,-460.0,0.00016438,2]
[369408387,1751567439126,-617.61,0.00016438,2]
[369408389,1751567439135,-460.0,0.00016438,2]
[369408391,1751567439144,-1861.86,0.00016438,2]
[369408393,1751567439154,-460.0,0.00016438,2]
[369408395,1751567439163,-460.0,0.00016438,2]
[369408397,1751567439175,-322.5036955,0.00016438,2]
[369408399,1751567439186,-460.0,0.00016438,2]
[369408401,1751567439198,-444.83674424,0.00016438,2]
[369408403,1751567439208,-460.0,0.00016438,2]
[369408405,1751567439217,-460.0,0.00016438,2]
[369408407,1751567439227,-460.0,0.00016438,2]
[369408409,1751567439237,-460.0,0.00016438,2]
[369408411,1751567439247,-460.0,0.00016438,2]
[369408413,1751567439259,-460.0,0.00016438,2]
[369408415,1751567439270,-1710.4,0.00016438,2]
[369408417,1751567439279,-541.67615501,0.00016438,2]
[369408419,1751567439288,-460.0,0.00016438,2]
[369408421,1751567439297,-460.0,0.00016438,2]
[369408423,1751567439307,-460.0,0.00016438,2]
[369408425,1751567439316,-460.0,0.00016438,2]
[369408427,1751567439325,-1849.98,0.00016438,2]
[369408429,1751567439335,-460.0,0.00016438,2]
[369408431,1751567439344,-460.0,0.00016438,2]
[369408433,1751567439353,-340.97013817,0.00016438,2]
[369408435,1751567439363,-460.0,0.00016438,2]
[369408437,1751567439372,-460.0,0.00016438,2]
[369408439,1751567439381,-596.28732745,0.00016438,2]
[369408441,1751567439391,-460.0,0.00016438,2]
[369408443,1751567439400,-460.0,0.00016438,2]
[369408445,1751567439409,-460.0,0.00016438,2]
[369408447,1751567439419,-460.0,0.00016438,2]
[369408449,1751567439428,-460.0,0.00016438,2]
[369408451,1751567439437,-983.8,0.00016438,2]
[369408453,1751567439446,-460.0,0.00016438,2]
[369408455,1751567439455,-1354.72,0.00016438,2]
[369408457,1751567439464,-460.0,0.00016438,2]
[369408459,1751567439474,-460.0,0.00016438,2]
[369408461,1751567439483,-460.0,0.00016438,2]
[369408463,1751567439492,-711.2,0.00016438,2]
[369408465,1751567439502,-460.0,0.00016438,2]
[369408467,1751567439511,-460.0,0.00016438,2]
[369408469,1751567439520,-460.0,0.00016438,2]
[369408471,1751567439529,-551.68,0.00016438,2]
[369408473,1751567439539,-460.0,0.00016438,2]
[369408475,1751567439548,-541.33,0.00016438,2]
[369408477,1751567439557,-460.0,0.00016438,2]
[369408479,1751567439567,-460.0,0.00016438,2]
[369408481,1751567439576,-236.67794614,0.00016438,2]
[369408483,1751567439588,-460.0,0.00016438,2]
[369408485,1751567439598,-460.0,0.00016438,2]
[369408487,1751567439607,-1214.98,0.00016438,2]
[369408489,1751567439617,-480.97,0.00016438,2]
[369408491,1751567439627,-460.0,0.00016438,2]
[369408493,1751567439637,-460.0,0.00016438,2]
[369408495,1751567439647,-460.0,0.00016438,2]
[369408497,1751567439657,-460.0,0.00016438,2]
[369408499,1751567439667,-2524.08,0.00016438,2]
[369408501,1751567439676,-331.42051478,0.00016438,2]
[369408503,1751567439686,-460.0,0.00016438,2]
[369408505,1751567439695,-460.0,0.00016438,2]
[369408507,1751567439704,-157.85461952,0.00016438,2]
[369408509,1751567439713,-460.0,0.00016438,2]
[369408511,1751567439723,-460.0,0.00016438,2]
[369408513,1751567439732,-313.18921736,0.00016438,2]
[369408515,1751567439741,-2694.57,0.00016438,2]
[369408517,1751567439752,-460.0,0.00016438,2]
[369408519,1751567439761,-571.11,0.00016438,2]
[369408521,1751567439770,-460.0,0.00016438,2]
[369408523,1751567439779,-460.0,0.00016438,2]
[369408525,1751567439789,-460.0,0.00016438,2]
[369408527,1751567439798,-460.0,0.00016438,2]
[369408529,1751567439808,-460.0,0.00016438,2]
[369408531,1751567439817,-460.0,0.00016438,2]
[369408533,1751567439826,-460.0,0.00016438,2]
[369408535,1751567439836,-460.0,0.00016438,2]
[369408537,1751567439845,-460.0,0.00016438,2]
[369408539,1751567439854,-151.71604643,0.00016438,2]
[369408541,1751567439863,-460.0,0.00016438,2]
[369408543,1751567439872,-460.0,0.00016438,2]
[369408545,1751567439881,-460.0,0.00016712,2]
[369408547,1751567439890,-460.0,0.00016712,2]
[369408549,1751567439900,-460.0,0.00016712,2]
[369408551,1751567439909,-460.0,0.00016712,2]
[369408553,1751567439918,-460.0,0.00016712,2]
[369408556,1751567439928,-460.0,0.00016712,2]
[369408558,1751567439937,-460.0,0.00016712,2]
[369408560,1751567439946,-460.0,0.00016712,2]
[369408562,1751567439955,-460.0,0.00016712,2]
[369408564,1751567439964,-579.99,0.00016712,2]
[369408566,1751567439973,-460.0,0.00016712,2]
[369408568,1751567439982,-460.0,0.00016712,2]
[369408570,1751567439991,-460.0,0.00016712,2]
[369408571,1751567440000,-460.0,0.00016712,2]
[369408573,1751567440009,-460.0,0.00016712,2]
[369408576,1751567440019,-460.0,0.00016712,2]
[369408578,1751567440028,-460.0,0.00016712,2]
[369408580,1751567440036,-460.0,0.00016712,2]
[369408582,1751567440045,-460.0,0.00016712,2]
[369408584,1751567440054,-460.0,0.00016712,2]
[369408586,1751567440063,-1068.95,0.00016712,2]
[369408588,1751567440072,-524.86695751,0.00016712,2]
[369408590,1751567440082,-1055.49,0.00016712,2]
[369408592,1751567440091,-1922.23,0.00016712,2]
[369408594,1751567440100,-460.0,0.00016712,2]
[369408595,1751567440109,-635.56,0.00016712,2]
[369408598,1751567440118,-460.0,0.00016712,2]
[369408600,1751567440127,-693.32,0.00016712,2]
[369408602,1751567440137,-460.0,0.00016712,2]
[369408604,1751567440147,-460.0,0.00016712,2]